Cogmind - Beta 10.2 *** ADVENTURER MODE // 2021.07.18 @ 12:36:06 // Winter2019/RPGLIKE Player: MEOWRTGM Result: Destroyed by D-53 Grenadier with Mini Grenade Launcher Performance ------------- Evolutions (1) 500 Regions Visited (4) 800 Robots Destroyed (29) 145 Value Destroyed (860) 860 Prototype IDs (3) 60 Alien Tech Used (0) 0 Bonus (0) 0 TOTAL SCORE: 2365 Bonus ------- None Cogmind --------- Core Integrity 0/600 Matter 260/300 Energy 265/265 System Corruption 0% Temperature Cool (0) Movement Treading (160) Location -9/Mines Parts ------- > --- POWER (1) -------- Improved Ion Engine > --- PROPULSION (3) --- Light Treads Light Treads Aluminum Leg > --- UTILITY (4) ------ Improved Heat Sink Signal Interpreter Improved Terrain Scanner Targeting Computer > --- WEAPON (4) ------- Improved EM Shotgun Beam Rifle Battle Cannon Grenade Launcher > --- INVENTORY (3) ---- Improved Ion Engine Advanced Beam Cannon EMP Trap Peak State ------------ > --- POWER ------------ Improved Ion Engine > --- PROPULSION ------- Light Treads Light Treads Aluminum Leg > --- UTILITY ---------- Improved Heat Sink Signal Interpreter Improved Terrain Scanner Targeting Computer > --- WEAPON ----------- Improved EM Shotgun Beam Rifle Battle Cannon Grenade Launcher > --- INVENTORY -------- Improved Ion Engine Advanced Beam Cannon [Rating: 20] Favorites ----------- Power Improved Ion Engine Engine Improved Ion Engine Propulsion Aluminum Leg Treads Light Treads Leg Aluminum Leg Utility Targeting Computer Device Improved Heat Sink Processor Targeting Computer Weapon Assault Rifle Energy Gun Beam Rifle Ballistic Gun Assault Rifle Ballistic Cannon Battle Cannon Launcher Grenade Launcher Build | -11 -10 -10 -9 -9 ------- Run | Scr Mat Min Mat Min Slots Evolved 8 | 3 . 2 2 1 Power . | . . . . . Propulsion 2 | 1 . 1 . . Utility 3 | 1 . 1 1 . Weapon 3 | 1 . . 1 1 Parts Attached 19 | 5 2 4 5 3 Power 2 | 1 . 1 . . Engine 2 | 1 . 1 . . Core . | . . . . . Reactor . | . . . . . Propulsion 5 | 2 . 1 2 . Treads 2 | . . . 2 . Leg 3 | 2 . 1 . . Wheel . | . . . . . Hover . | . . . . . Flight . | . . . . . Utility 5 | . 2 1 2 . Device 3 | . . 1 2 . Storage . | . . . . . Processor 2 | . 2 . . . Hackware . | . . . . . Protection . | . . . . . Artifact . | . . . . . Weapon 7 | 2 . 1 1 3 Energy Gun 3 | 1 . 1 1 . Energy Cannon . | . . . . . Ballistic Gun 2 | 1 . . . 1 Ballistic Cannon 1 | . . . . 1 Launcher 1 | . . . . 1 Special Weapon . | . . . . . Impact Weapon . | . . . . . Slashing Weapon . | . . . . . Piercing Weapon . | . . . . . Special Melee Weapon . | . . . . . Unidentified Prototypes 1 | . . . 1 . Parts Lost . | . . . . . Power . | . . . . . Propulsion . | . . . . . Utility . | . . . . . Weapon . | . . . . . Highest Loss Streak . | . . . . . Average Slot Usage (%) 98 | . 83 100 99 100 Engine 10 | . 14 11 9 8 Treads 4 | . . . 5 16 Leg 26 | . 28 35 23 8 Device 8 | . . 3 15 16 Processor 20 | . 12 24 19 16 Energy Gun 13 | . 14 11 16 16 Ballistic Gun 10 | . 14 11 9 5 Launcher 1 | . . . . 6 Naked Turns . | . . . . . Heaviest Build 21 | 7 7 13 17 21 Greatest Support 40 | 20 20 30 40 40 Greatest Overweight (x) . | . . . . . Average Overweight (x) . | . . . . . Largest Inventory Capacity 3 | 1 1 2 3 3 Average Capacity 2 | . 1 1 2 3 Most Carried 3 | 1 1 2 3 3 Average Carried 1 | . . 1 2 2 Final Capacity 3 | 1 1 2 3 3 Final Carried 3 | . . 2 3 3 Class Distribution -------------------- 50% | Scavenger-Mutant 28% | Scavenger-Skirmisher 19% | Mutant Dominant Class ---------------- Mutant | -10/Materials Scavenger-Mutant | -10/Mines Scavenger-Skirmisher | -9/Materials Scavenger-Skirmisher | -9/Mines Resources | -11 -10 -10 -9 -9 ----------- Run | Scr Mat Min Mat Min Matter Collected 590 | 250 65 90 85 100 Remotely . | . . . . . Salvage Created 1168 | . 243 300 452 173 Parts 61 | . 9 11 25 16 Haulers Intercepted 3 | . 1 . 2 . Recyclers Shooed . | . . . . . Parts Field Recycled . | . . . . . Retrieved Matter . | . . . . . Parts Self-Destructed . | . . . . . Prevented . | . . . . . Kills | -11 -10 -10 -9 -9 ------- Run | Scr Mat Min Mat Min Combat Hostiles Destroyed 31 | . 2 8 6 15 Guns 18 | . 2 8 4 4 AOE 13 | . . . 2 11 Classes Destroyed 7 | . 3 1 1 2 Worker 1 | . . . . 1 Hauler 3 | . 1 . 2 . Watcher 4 | . 2 . 2 . Swarmer 3 | . . . . 3 Grunt 16 | . 2 7 4 3 Sentry 2 | . . . 2 . Assembled 10 | . . 1 . 9 Best Kill Streak 9 | . 3 2 6 9 Combat Bots Only 9 | . 2 2 4 9 Max Kills in Single Turn 5 | . 1 1 3 5 Gunslinging 1 | . . . 1 . Exploded 5 | . . . 2 5 Melee . | . . . . . Uniques/NPCs Destroyed . | . . . . . Combat | -11 -10 -10 -9 -9 -------- Run | Scr Mat Min Mat Min Damage Taken 1334 | . 211 282 121 720 Core 1065 | . 176 226 94 569 Absorbed by Shields . | . . . . . Redirected to Core 885 | . 114 186 84 501 Core Remaining (%) 85 | 100 . 71 . . Volleys Fired 66 | . 15 20 17 14 Largest 3 | . 2 2 3 3 Hottest 121 | . 70 76 121 121 Shots Fired 144 | . 30 40 45 29 Gun 138 | . 30 40 45 23 Cannon . | . . . . . Launcher 6 | . . . . 6 Special . | . . . . . Kinetic 60 | . 15 20 17 8 Thermal 60 | . 15 20 17 8 Explosive 6 | . . . . 6 Electromagnetic 18 | . . . 11 7 Robot Hit Streak 39 | . 24 39 33 37 Robot Miss Streak 2 | . 2 1 1 1 Penetration Max . | . . . . . Secondary Targets 4 | . . 2 2 . Max Gunslinging Chain 1 | . . 1 1 . Shots Hit Robots 116 | . 25 33 39 19 Core Hits 73 | . 9 15 16 33 Critical Hits 2 | . . . 1 1 Critical Kills . | . . . . . Critical Parts Destroyed 2 | . . . 1 1 Melee Attacks . | . . . . . Impact . | . . . . . Slashing . | . . . . . Piercing . | . . . . . Sneak Attacks . | . . . . . Combat Hostiles . | . . . . . Follow-up Attacks . | . . . . . Damage Inflicted 2589 | . 304 442 838 1005 Guns 1636 | . 304 442 628 262 Cannons . | . . . . . Explosions 953 | . . . 210 743 Melee . | . . . . . Ramming . | . . . . . Kinetic 515 | . 131 195 138 51 Thermal 946 | . 173 247 441 85 Explosive 743 | . . . . 743 Electromagnetic 385 | . . . 259 126 Impact . | . . . . . Slashing . | . . . . . Piercing . | . . . . . Highest Corruption . | . . . . . Average Corruption . | . . . . . Corruption Purged . | . . . . . Overload Shots . | . . . . . Overflow Damage 39 | . . . 28 11 Projectiles . | . . . . . Explosions 39 | . . . 28 11 Melee . | . . . . . Knockbacks . | . . . . . Impact . | . . . . . Kinetic . | . . . . . Secondary . | . . . . . Self-Inflicted Damage 44 | . . . 15 29 Shots 3 | . . . 1 2 Rammed . | . . . . . Targets Rammed . | . . . . . Kicked . | . . . . . Crushed . | . . . . . Highest Temperature 186 | . 186 147 96 105 Average Temperature 58 | . 88 58 28 37 Received Heat Transfer 543 | . 159 249 57 78 Siege Activations . | . . . . . Robots Corrupted . | . . . . . Combat Hostiles . | . . . . . Parts Fried . | . . . . . Impact Corruptions . | . . . . . Robots Melted . | . . . . . Combat Hostiles . | . . . . . Parts Melted 3 | . 1 2 . . Heat Transferred 2248 | . 518 666 842 222 Parts Sabotaged . | . . . . . Parts Stolen . | . . . . . Parts Stripped . | . . . . . Power Chain Reactions 4 | . . . 3 1 Missiles Intercepted . | . . . . . Alert | -11 -10 -10 -9 -9 ------- Run | Scr Mat Min Mat Min Peak Influence 268 | . 101 158 258 268 Initial 84 | . . 33 . 84 Average 102 | . 35 48 160 227 Maximum Alert Level 1 | . . . 1 1 Low Security (%) 74 | 100 100 100 50 17 Level 1 25 | . . . 50 82 Level 2 . | . . . . . Level 3 . | . . . . . Level 4 . | . . . . . Level 5 . | . . . . . High Security . | . . . . . Max Security . | . . . . . Squads Dispatched 2 | . . . 2 . Investigation 2 | . . . 2 . Extermination . | . . . . . Reinforcement . | . . . . . Assault . | . . . . . Garrison . | . . . . . Intercept . | . . . . . Construction Impeded . | . . . . . Haulers Reinforced . | . . . . . Stealth | -11 -10 -10 -9 -9 --------- Run | Scr Mat Min Mat Min Distress Signals 3 | . 1 1 1 . Communications Jammed . | . . . . . Distress Signals . | . . . . . Times Spotted 52 | . 5 9 12 26 Peak Tracking Total 19 | . 2 2 6 19 Tactical Retreats 2 | . . 1 . 1 Traps | -11 -10 -10 -9 -9 ------- Run | Scr Mat Min Mat Min Traps Triggered 1 | . . . 1 . Indirectly . | . . . . . Trap Hack Attempts . | . . . . . Triggered . | . . . . . Disarmed . | . . . . . Reprogrammed . | . . . . . Reused . | . . . . . Traps Extracted . | . . . . . Installed 1 | . . . . 1 Triggered 1 | . . . 1 . Machines | -11 -10 -10 -9 -9 ---------- Run | Scr Mat Min Mat Min Machines Disabled 6 | . . 1 4 1 Max in Single Turn 4 | . . 1 4 1 Machines Sabotaged . | . . . . . Garrisons Compromised . | . . . . . Overloaded Fab Kills . | . . . . . Fab Network Shutdowns . | . . . . . Hacking | -11 -10 -10 -9 -9 --------- Run | Scr Mat Min Mat Min Machines Accessed 3 | . . . 3 . Terminals 3 | . . . 3 . Fabricators . | . . . . . Repair Stations . | . . . . . Recycling Units . | . . . . . Scanalyzers . | . . . . . Garrison Access . | . . . . . Total Hacks 5 | . . . 5 . Successful 3 | . . . 3 . Failed 2 | . . . 2 . Catastrophic 1 | . . . 1 . Database Lockouts . | . . . . . Manual . | . . . . . Terminals 5 | . . . 5 . Fabricators . | . . . . . Repair Stations . | . . . . . Recycling Units . | . . . . . Scanalyzers . | . . . . . Garrison Access . | . . . . . Terminal Hacks 3 | . . . 3 . Prototype ID Bank 1 | . . . 1 . Alert Level 1 | . . . 1 . Hauler Manifests 1 | . . . 1 . Fabricator Hacks . | . . . . . Repair Station Hacks . | . . . . . Recycling Unit Hacks . | . . . . . Scanalyzer . | . . . . . Garrison Access Hacks . | . . . . . Unauthorized Hacks . | . . . . . Terminals . | . . . . . Fabricators . | . . . . . Repair Stations . | . . . . . Recycling Units . | . . . . . Scanalyzers . | . . . . . Garrison Access . | . . . . . Data Cores Recovered . | . . . . . Used . | . . . . . Hacking Detections 2 | . . . 2 . Full Trace Events . | . . . . . Feedback Events . | . . . . . Feedback Blocked . | . . . . . Robot Schematics Acquired . | . . . . . Robots Built . | . . . . . Matter . | . . . . . Time . | . . . . . Total Robot Build Rating . | . . . . . Part Schematics Acquired . | . . . . . Parts Built . | . . . . . Matter . | . . . . . Time . | . . . . . Total Part Build Rating . | . . . . . Parts Repaired . | . . . . . Time . | . . . . . Parts Recycled . | . . . . . Recycled Matter . | . . . . . Retrieved Matter . | . . . . . Retrieved Components . | . . . . . Parts Scanalyzed . | . . . . . Part Schematics Acquired . | . . . . . Parts Damaged . | . . . . . Bothacking | -11 -10 -10 -9 -9 ------------ Run | Scr Mat Min Mat Min Used RIF Installer . | . . . . . Robots Hacked . | . . . . . Non-combat . | . . . . . Combat . | . . . . . Robot Hacks Applied . | . . . . . Relay Couplers Released . | . . . . . Robots Rewired . | . . . . . Allies Hacked . | . . . . . Hacks Repelled . | . . . . . Allies | -11 -10 -10 -9 -9 -------- Run | Scr Mat Min Mat Min Total Allies . | . . . . . Largest Group . | . . . . . Highest-Rated Group . | . . . . . Highest-Rated Ally . | . . . . . Total Orders . | . . . . . Ally Attacks . | . . . . . Total Damage . | . . . . . Kills . | . . . . . Allies Corrupted . | . . . . . Allies Melted . | . . . . . Intel | -11 -10 -10 -9 -9 ------- Run | Scr Mat Min Mat Min Robot Analysis Total . | . . . . . Derelict Logs Recovered 2 | . . 2 . . Drone Launches . | . . . . . Drone Recoveries . | . . . . . Exploration | -11 -10 -10 -9 -9 ------------- Run | Scr Mat Min Mat Min Turns Passed 1890 | 74 144 953 324 395 Spaces Moved 1224 | 61 80 687 181 215 Core 10 | 10 . . . . Treads 276 | . . . 61 215 Legs 938 | 51 80 687 120 . Wheels . | . . . . . Hover . | . . . . . Flight . | . . . . . Fastest Speed 50 | 50 120 120 120 160 Average Speed 128 | 108 120 120 133 160 Slowest Speed 160 | 120 120 120 160 160 Overloaded Moves . | . . . . . Propulsion Burnouts . | . . . . . Robots Hopped . | . . . . . Cave-ins Triggered . | . . . . . Exploration Rate (%) 38 | 3 23 94 21 51 Regions Visited 4 Branch Regions 2 Pre-discovered Areas 1 | . . 1 . . Known Exits Taken 3 | . 1 1 1 . Unknown Exits Taken 1 | 1 . . . . Scrap Searched 4 | . . 1 . 3 Spaces Dug . | . . . . . Terrain Destroyed 121 | . . . 67 54 Melee . | . . . . . Projectile . | . . . . . AOE 121 | . . . 67 54 Terrain Rammed . | . . . . . Walls Destroyed . | . . . . . Machines Disabled . | . . . . . Actions | -11 -10 -10 -9 -9 --------- Run | Scr Mat Min Mat Min Total 1410 | 67 98 775 227 243 Wait 58 | . . 47 11 . Move 1220 | 60 79 686 180 215 Hop . | . . . . . Pick Up 16 | 2 2 5 5 2 Fast Attach 8 | 3 . 2 2 1 Attach 8 | 2 2 . 2 2 Detach . | . . . . . Swap 3 | . . 2 1 . Drop 9 | . . 3 4 2 Fire 66 | . 15 20 17 14 Melee . | . . . . . Ram . | . . . . . Kick . | . . . . . Crush . | . . . . . Escape Stasis . | . . . . . Rewire . | . . . . . Trap 1 | . . . . 1 Miscellaneous 21 | . . 10 5 6 Route ------- -11/Scrapyard -10/Materials -10/Mines -9/Materials (discovered 2 exits: Mat / *Min) -9/Mines (discovered 2 exits: *Mat x2) History --------- Turn | Location | Event 5 | -11/Scrapyard | Discovered new exit (range 16) 22 | -11/Scrapyard | Upgraded with Propulsion slot (x1) 22 | -11/Scrapyard | Upgraded with Utility slot (x1) 22 | -11/Scrapyard | Upgraded with Weapon slot (x1) 75 | -11/Scrapyard | Entered Materials 145 | -10/Materials | Discovered new exit (range 15) 218 | -10/Materials | Identified exit to Mines 219 | -10/Materials | Entered Mines 276 | -10/Mines | Core integrity fell below 50% 286 | -10/Mines | Upgraded with Propulsion slot (x1) 311 | -10/Mines | Build established: Mutant 363 | -10/Mines | Joined a pair of Derelicts in attacking an 0b10 outpost 476 | -10/Mines | Excavation squad dispatched 476 | -10/Mines | A large section of the Mines collapsed 507 | -10/Mines | Discovered new exit (range 7) 513 | -10/Mines | Identified exit to Materials 643 | -10/Mines | Learned location of Mines (-8) 647 | -10/Mines | Learned location of 1 exit from Materials 686 | -10/Mines | Build established: Scavenger-Mutant 860 | -10/Mines | Reached level 2 881 | -10/Mines | Upgraded with Utility slot (x1) 1172 | -10/Mines | Entered Materials 1173 | -9/Materials | Identified exit to Materials 1174 | -9/Materials | Reached level 3 1258 | -9/Materials | Reached level 4 1264 | -9/Materials | Upgraded with Weapon slot (x1) 1295 | -9/Materials | Upgraded with Utility slot (x1) 1342 | -9/Materials | Discovered new exit (range 16) 1486 | -9/Materials | Identified exit to Mines 1496 | -9/Materials | Entered Mines 1530 | -9/Mines | Reached level 5 1559 | -9/Mines | Upgraded with Weapon slot (x1) 1599 | -9/Mines | Build established: Scavenger-Skirmisher 1648 | -9/Mines | Discovered exit to Materials (range 9) 1748 | -9/Mines | A weapon hastily lodged in a ceiling crevice suddenly fell to the ground 1802 | -9/Mines | Found a hidden stash of uninstalled traps 1808 | -9/Mines | Discovered exit to Materials (range 16) 1846 | -9/Mines | Assembled infested the area 1866 | -9/Mines | Core integrity fell below 50% 1874 | -9/Mines | Core integrity fell below 20% 1876 | -9/Mines | Destroyed 9 combat bots 1891 | -9/Mines | Destroyed by D-53 Grenadier with Mini Grenade Launcher Last Messages --------------- 01861_ as-47959 destroyed. 01863_ as-50725 powers down. 01863_ as-05621 powers down. 01863_ as-41077 powers down. 01863_ K-01 Serf collects debris. 01869_ D-53 Grenadier destroyed. 01869_ K-01 Serf destroyed. 01869_ K-01 Serf collects debris. 01873_ K-01 Serf destroyed. 01876_ as-05621 destroyed. 01877_ U-05 Engineer builds a Wall. 01881_ U-05 Engineer lays Concrete. 01882_ U-05 Engineer destroyed. 01883_ The unstable cave ceiling collapses. 01883_ K-01 Serf collects debris. 01884_ HV Slug penetrates Earth. 01885_ A derelict is hurriedly installing traps. 01887_ IR-Z9A(g): "Hehe, this'll put a wrench in their mining defense operations..." 01887_ IR-Z9A(g) slips into the shadows. Map ----- +----------------------------------------------------+ | | | | | | | | | | | | | | | | | | | | | ????????#?????###?#??#######????###????#???# | | ?????????#?#?#??##?#?######??##???##??#?#??? | | ?????????????#???##?##############?###?????? | | ???????##????###?#### ####?##?#########?#?? | | ??????? ?#???#??## ####?####### ##### | | ?????? #???##??# ^ ## # | | ??????? #???#?### ## # | | ??????????###### ## | | ????#? ? #??#?## % | | ????? ?? ? ??## | | ????????###?#### d x | | ?????#??#?# #####k t ## # | | ?????? #?# %= %* # ##?## | | ??????????######## ## = ######?## | | ????#?????????#### #### ######?## | | ?????#????#???### ^@ ### # ###?##??# | | ?????????##??### # ## #?#?#?? | | ???????????##?# #^ # #### ##### ###???? | | ?????????#???# # #^ # #### #####?###???? | | ?????? ?????# < # # ####x ####?#??# ? | | ???????? ???## ^?#"? # #### ###? ? | | ?????????????#### ?? # = #?#??## "" | | ????????????????##?###?# ! ! #?####??"" | | ???????? ?????#????#?######## ##?#?## ?" | | ????????????????#?#?######### ##?#?#?# | | ??????????????####?#?###??### ##?###????"" | | ??????????#?????##?##?##?### [ ##?#####? "" | | ?????????????#?###? ?##?## ######?#?"? | | ?????????????????? #?#?# ##?## ?? | | ?????????????????#?? #?### #?##?## | | ????????????????#?# ? ?## ###?#?? | | ????????????????#??# ####????#? | | ????????????????#??## ## #####?#?##? | | ?????????????????#??### #?# ##?####???#? | | ?????????????????###?######### ###???#?#??? | | ?????????????? ? #??##????#?# | | ?????????????????###??######## #?#??#??#?#? | | ????????? ??##?#?#########??# ###?###??#?? | | ????????????????##??#####?#?## ####??#??? | | ???#????#????##???##?######## ##?#????# | +----------------------------------------------------+ Best States ------------- Heat Dissipation 39 Energy Generation 12 Energy Capacity 265 Matter Stores 300 Matter Capacity 300 Sight Range 16 Robot Scan Range 12 Terrain Scan Range 16 Terrain Scan Density 110 Resistance: KI 20 Resistance: TH 20 Resistance: EX 20 Resistance: EM 20 Resistance: I 20 Resistance: S 20 Resistance: P 20 Evasion (%) 40 Targeting Accuracy 5 Recoil Reduction 2 Offensive Hacking 10 Item Schematics ----------------- None Robot Schematics ------------------ None Fabricated ------------ Nothing Alien Tech Used ----------------- None Achievements -------------- None Challenges ------------ None RPGLIKE | -11 -10 -10 -9 -9 --------- Run | Scr Mat Min Mat Min Levels Raised 4 | . . 1 2 1 XP Earned 10756 | 4000 355 1345 3736 1320 XP Spent 8725 | 2100 400 2100 3025 1100 Upgrades 19 | 8 1 3 6 1 Propulsion Slot 2 | 1 . 1 . . Utility Slot 3 | 1 . 1 1 . Weapon Slot 3 | 1 . . 1 1 Inventory Capacity 3 | 1 . 1 1 . Sensor Range 6 | 4 . . 2 . Terrain Scan Density 1 | . . . 1 . Ranged Accuracy 1 | . 1 . . . Protomatter Created 170 | . . 77 34 59 Integrity Restored 459 | . . 231 102 126 Core 459 | . . 231 102 126 Protomatter Decayed 63 | . . 63 . . Game ------ Seed FlyingMatterWand Manual? 0 Play Time 00:13:43 Cumulative 60.9 hours Start 2021.07.18 @ 12:21:55 End 2021.07.18 @ 12:36:06 Sessions 1 Manual Loads 0 Difficulty Adventurer Special Mode Winter2019/RPGLIKE Game No. 53 Rogue 23 Adventurer 30 Explorer 0 Win Type - Total 2 Types 1/0/0/1/0/0/0/0/0 Lore% 49 Gallery% 56 Achievement% 52 Wizard Run 0 Options --------- ASCII 0 Keyboard 0 Movement Mouse Keybinds 0 Fullscreen 0 Font 16/SmallcapsGlow Map View 76x50 Tactical HUD 1 Map Filters NONE Filters NONE Steam 1 RUN: e55ffe8f-edc8-4559-8ae6-e5356cee85f8